[Event "Titled Tuesday Blitz December 20 Late 2022"]
[White "Van Foreest, Jorden"]
[Black "Gorodetzky, David"]
[WhiteFideId "1039784"]
[BlackFideId "2813416"]
[WhiteElo "2663"]
[BlackElo "2484"]
[Result "1-0"]
[Round "06"]
[TimeControl "180+1"]
[Date "2022.12.20"]
[WhiteClock "0:00:57"]
[BlackClock "0:00:37"]

1. e4 {[%clk 0:03:00]}  e5 {[%clk 0:02:54]} 2. Nf3 {[%clk 0:03:01]}  Nc6 {[%clk 0:02:55]} 3. Bb5 {[%clk 0:03:01]}  a6 {[%clk 0:02:54]} 4. Ba4 {[%clk 0:03:01]}  Nf6 {[%clk 0:02:54]} 5. d3 {[%clk 0:03:01]}  Bc5 {[%clk 0:02:49]} 6. c3 {[%clk 0:03:00]}  d6 {[%clk 0:02:43]} 7. O-O {[%clk 0:02:59]}  Ba7 {[%clk 0:02:43]} 8. h3 {[%clk 0:02:58]}  O-O {[%clk 0:02:39]} 9. Re1 {[%clk 0:02:57]}  Re8 {[%clk 0:02:31]} 10. Nbd2 {[%clk 0:02:56]}  d5 {[%clk 0:02:19]} 11. exd5 {[%clk 0:02:43]}  Qxd5 {[%clk 0:02:19]} 12. Ne4 {[%clk 0:02:38]}  Nxe4 {[%clk 0:02:14]} 13. dxe4 {[%clk 0:02:39]}  Qxd1 {[%clk 0:02:12]} 14. Rxd1 {[%clk 0:02:40]}  f6 {[%clk 0:02:05]} 15. Ne1 {[%clk 0:02:07]}  Be6 {[%clk 0:02:01]} 16. Bxc6 {[%clk 0:02:06]}  bxc6 {[%clk 0:02:01]} 17. Nc2 {[%clk 0:02:02]}  Reb8 {[%clk 0:01:55]} 18. b3 {[%clk 0:01:59]}  a5 {[%clk 0:01:55]} 19. Be3 {[%clk 0:01:58]}  a4 {[%clk 0:01:56]} 20. Bxa7 {[%clk 0:01:52]}  Rxa7 {[%clk 0:01:56]} 21. b4 {[%clk 0:01:38]}  a3 {[%clk 0:01:56]} 22. Ne3 {[%clk 0:01:34]}  c5 {[%clk 0:01:56]} 23. bxc5 {[%clk 0:01:32]}  Ra5 {[%clk 0:01:51]} 24. c4 {[%clk 0:01:30]}  Kf7 {[%clk 0:01:39]} 25. Rd3 {[%clk 0:01:27]}  Rb2 {[%clk 0:01:32]} 26. Rb3 {[%clk 0:01:26]}  g6 {[%clk 0:01:21]} 27. c6 {[%clk 0:01:24]}  f5 {[%clk 0:01:18]} 28. Rb7 {[%clk 0:01:24]}  fxe4 {[%clk 0:01:00]} 29. Rxc7+ {[%clk 0:01:24]}  Kf6 {[%clk 0:01:01]} 30. Rxh7 {[%clk 0:01:21]}  Rc5 {[%clk 0:01:01]} 31. Ra7 {[%clk 0:01:09]}  Rxc6 {[%clk 0:01:00]} 32. Rxa3 {[%clk 0:01:09]}  Rd6 {[%clk 0:01:00]} 33. c5 {[%clk 0:01:04]}  Rdd2 {[%clk 0:01:00]} 34. c6 {[%clk 0:01:00]}  Rxf2 {[%clk 0:00:37]} 35. c7 {[%clk 0:01:01]}  Rfe2 {[%clk 0:00:37]} 36. Ra6 {[%clk 0:00:57]} 1-0


[Site "https://www.chess.com"]

[Event "Titled Tuesday Blitz December 20 Late 2022"]
[White "White, John S."]
[Black "Marcolino, Daniel Mattos"]
[WhiteFideId "2502348"]
[BlackFideId "2106841"]
[WhiteElo "1950"]
[BlackElo "2128"]
[Result "0-1"]
[Round "06"]
[TimeControl "180+1"]
[Date "2022.12.21"]
[WhiteClock "0:00:01"]
[BlackClock "0:00:06"]

1. e4 {[%clk 0:02:59]}  c6 {[%clk 0:02:58]} 2. d4 {[%clk 0:02:58]}  d5 {[%clk 0:02:59]} 3. Nc3 {[%clk 0:02:57]}  dxe4 {[%clk 0:02:59]} 4. Nxe4 {[%clk 0:02:57]}  Nd7 {[%clk 0:02:59]} 5. Nf3 {[%clk 0:02:55]}  Ngf6 {[%clk 0:02:59]} 6. Nxf6+ {[%clk 0:02:52]}  Nxf6 {[%clk 0:02:59]} 7. c4 {[%clk 0:02:50]}  Bg4 {[%clk 0:02:59]} 8. Be2 {[%clk 0:02:48]}  e6 {[%clk 0:02:59]} 9. O-O {[%clk 0:02:46]}  Be7 {[%clk 0:02:53]} 10. h3 {[%clk 0:02:45]}  Bh5 {[%clk 0:02:53]} 11. Be3 {[%clk 0:02:38]}  O-O {[%clk 0:02:52]} 12. Qb3 {[%clk 0:02:36]}  Qc7 {[%clk 0:02:46]} 13. Rad1 {[%clk 0:02:31]}  Rfd8 {[%clk 0:02:44]} 14. Rfe1 {[%clk 0:02:26]}  Rab8 {[%clk 0:02:27]} 15. a4 {[%clk 0:02:21]}  b5 {[%clk 0:02:23]} 16. axb5 {[%clk 0:02:17]}  cxb5 {[%clk 0:02:24]} 17. cxb5 {[%clk 0:02:15]}  Nd5 {[%clk 0:02:24]} 18. Ne5 {[%clk 0:02:06]}  Bxe2 {[%clk 0:02:13]} 19. Rxe2 {[%clk 0:02:05]}  Rb6 {[%clk 0:01:55]} 20. Rc2 {[%clk 0:01:58]}  Qb7 {[%clk 0:01:41]} 21. Nc6 {[%clk 0:01:44]}  Re8 {[%clk 0:01:40]} 22. Qa4 {[%clk 0:01:32]}  Bd6 {[%clk 0:01:32]} 23. Qxa7 {[%clk 0:01:22]}  Rxb5 {[%clk 0:01:25]} 24. Qxb7 {[%clk 0:01:18]}  Rxb7 {[%clk 0:01:26]} 25. Rdc1 {[%clk 0:01:11]}  h5 {[%clk 0:01:22]} 26. Ne5 {[%clk 0:01:02]}  Rb3 {[%clk 0:01:19]} 27. Nc4 {[%clk 0:00:43]}  Nxe3 {[%clk 0:00:43]} 28. fxe3 {[%clk 0:00:35]}  Be7 {[%clk 0:00:37]} 29. Rc3 {[%clk 0:00:29]}  Rb4 {[%clk 0:00:34]} 30. Ne5 {[%clk 0:00:27]}  Rxb2 {[%clk 0:00:29]} 31. Nc6 {[%clk 0:00:23]}  Bf6 {[%clk 0:00:28]} 32. e4 {[%clk 0:00:19]}  Kh7 {[%clk 0:00:21]} 33. e5 {[%clk 0:00:16]}  Bg5 {[%clk 0:00:21]} 34. R1c2 {[%clk 0:00:13]}  Rxc2 {[%clk 0:00:19]} 35. Rxc2 {[%clk 0:00:13]}  Rc8 {[%clk 0:00:19]} 36. Nb4 {[%clk 0:00:12]}  Rxc2 {[%clk 0:00:14]} 37. Nxc2 {[%clk 0:00:12]}  Kg6 {[%clk 0:00:15]} 38. Kf2 {[%clk 0:00:12]}  Kf5 {[%clk 0:00:15]} 39. Kf3 {[%clk 0:00:12]}  Bc1 {[%clk 0:00:14]} 40. g4+ {[%clk 0:00:11]}  Kg5 {[%clk 0:00:11]} 41. Nb4 {[%clk 0:00:07]}  Bb2 {[%clk 0:00:09]} 42. Nc2 {[%clk 0:00:04]}  hxg4+ {[%clk 0:00:08]} 43. hxg4 {[%clk 0:00:03]}  g6 {[%clk 0:00:09]} 44. Kg3 {[%clk 0:00:02]}  Bc1 {[%clk 0:00:09]} 45. Kf3 {[%clk 0:00:02]}  Bd2 {[%clk 0:00:08]} 46. Kg3 {[%clk 0:00:01]}  Bf4+ {[%clk 0:00:08]} 47. Kf3 {[%clk 0:00:01]}  Bh2 {[%clk 0:00:06]} 0-1


[Site "https://www.chess.com"]

[Event "Titled Tuesday Blitz December 20 Late 2022"]
[White "Yedidia, Daniel"]
[Black "Hambleton, Aman"]
[WhiteFideId "30905907"]
[BlackFideId "2606577"]
[WhiteElo "2573"]
[BlackElo "2782"]
[Result "1-0"]
[Round "06"]
[TimeControl "180+1"]
[Date "2022.12.21"]
[WhiteClock "0:00:13"]
[BlackClock "0:00:01"]

1. d4 {[%clk 0:03:00]}  Nf6 {[%clk 0:02:58]} 2. c4 {[%clk 0:03:00]}  b6 {[%clk 0:02:56]} 3. f3 {[%clk 0:02:52]}  Nc6 {[%clk 0:02:50]} 4. e4 {[%clk 0:02:49]}  e5 {[%clk 0:02:50]} 5. d5 {[%clk 0:02:47]}  Bb4+ {[%clk 0:02:41]} 6. Nc3 {[%clk 0:02:42]}  Ne7 {[%clk 0:02:39]} 7. Bd2 {[%clk 0:02:38]}  Ng6 {[%clk 0:02:34]} 8. Nge2 {[%clk 0:02:27]}  O-O {[%clk 0:02:30]} 9. a3 {[%clk 0:02:27]}  Bxc3 {[%clk 0:02:22]} 10. Nxc3 {[%clk 0:02:24]}  Nh5 {[%clk 0:02:23]} 11. g3 {[%clk 0:02:19]}  d6 {[%clk 0:02:23]} 12. Bg2 {[%clk 0:02:17]}  f5 {[%clk 0:02:19]} 13. exf5 {[%clk 0:01:58]}  Bxf5 {[%clk 0:02:20]} 14. O-O {[%clk 0:01:50]}  Bd3 {[%clk 0:02:11]} 15. Rf2 {[%clk 0:01:20]}  Bxc4 {[%clk 0:02:11]} 16. f4 {[%clk 0:01:13]}  Nf6 {[%clk 0:01:59]} 17. Qa4 {[%clk 0:00:59]}  Bd3 {[%clk 0:01:00]} 18. f5 {[%clk 0:00:55]}  Ne7 {[%clk 0:01:00]} 19. g4 {[%clk 0:00:55]}  Qe8 {[%clk 0:00:37]} 20. Qd1 {[%clk 0:00:41]}  e4 {[%clk 0:00:36]} 21. g5 {[%clk 0:00:19]}  Nfxd5 {[%clk 0:00:23]} 22. Qb3 {[%clk 0:00:13]}  c6 {[%clk 0:00:06]} 23. f6 {[%clk 0:00:12]}  gxf6 {[%clk 0:00:04]} 24. gxf6 {[%clk 0:00:12]}  Ng6 {[%clk 0:00:02]} 25. Nxd5 {[%clk 0:00:12]}  cxd5 {[%clk 0:00:03]} 26. Qxd5+ {[%clk 0:00:13]}  Qf7 {[%clk 0:00:04]} 27. Qxd6 {[%clk 0:00:13]}  Rad8 {[%clk 0:00:04]} 28. Qg3 {[%clk 0:00:14]}  Kh8 {[%clk 0:00:04]} 29. Bh6 {[%clk 0:00:13]}  Rg8 {[%clk 0:00:04]} 30. Bg7+ {[%clk 0:00:13]}  Rxg7 {[%clk 0:00:05]} 31. fxg7+ {[%clk 0:00:14]}  Qxg7 {[%clk 0:00:06]} 32. Re1 {[%clk 0:00:14]}  Re8 {[%clk 0:00:03]} 33. Qxd3 {[%clk 0:00:14]}  Nh4 {[%clk 0:00:01]} 34. Rxe4 {[%clk 0:00:14]}  Rg8 {[%clk 0:00:01]} 35. Rxh4 {[%clk 0:00:13]}  Qg5 {[%clk 0:00:01]} 36. Qxh7# {[%clk 0:00:13]} 1-0


[Site "https://www.chess.com"]

[Event "Titled Tuesday Blitz December 20 Late 2022"]
[White "Abdrlauf, Elham"]
[Black "Paravyan, David"]
[WhiteFideId "1533533"]
[BlackFideId "4194985"]
[WhiteElo "2454"]
[BlackElo "2551"]
[Result "1/2-1/2"]
[Round "07"]
[TimeControl "180+1"]
[Date "2022.12.20"]
[WhiteClock "0:03:02"]
[BlackClock "0:02:32"]

1. e4 {[%clk 0:03:00]}  e5 {[%clk 0:02:59]} 2. Nc3 {[%clk 0:03:00]}  Nf6 {[%clk 0:02:58]} 3. d4 {[%clk 0:03:00]}  exd4 {[%clk 0:02:59]} 4. Qxd4 {[%clk 0:03:01]}  Nc6 {[%clk 0:02:58]} 5. Qd3 {[%clk 0:03:01]}  d5 {[%clk 0:02:59]} 6. Bf4 {[%clk 0:03:01]}  d4 {[%clk 0:02:57]} 7. Nb5 {[%clk 0:03:01]}  Bb4+ {[%clk 0:02:57]} 8. c3 {[%clk 0:03:01]}  dxc3 {[%clk 0:02:57]} 9. Qxd8+ {[%clk 0:03:02]}  Kxd8 {[%clk 0:02:56]} 10. O-O-O+ {[%clk 0:03:01]}  Bd7 {[%clk 0:02:51]} 11. bxc3 {[%clk 0:03:01]}  Ba5 {[%clk 0:02:48]} 12. f3 {[%clk 0:03:00]}  a6 {[%clk 0:02:48]} 13. Nd4 {[%clk 0:03:01]}  Nxd4 {[%clk 0:02:48]} 14. cxd4 {[%clk 0:03:01]}  Ba4 {[%clk 0:02:48]} 15. Rd3 {[%clk 0:03:02]}  Bb5 {[%clk 0:02:45]} 16. Rd1 {[%clk 0:03:02]}  Ba4 {[%clk 0:02:32]} 17. Rd3 {[%clk 0:03:02]}  Bb5 {[%clk 0:02:33]} 18. Rd1 {[%clk 0:03:02]}  Ba4 {[%clk 0:02:32]} 1/2-1/2


[Site "https://www.chess.com"]

[Event "Titled Tuesday Blitz December 20 Late 2022"]
[White "Andreassen, Lars"]
[Black "Jimenez Almeida, Luis David"]
[WhiteFideId "1504878"]
[BlackFideId "22242244"]
[WhiteElo "2119"]
[BlackElo "2158"]
[Result "0-1"]
[Round "07"]
[TimeControl "180+1"]
[Date "2022.12.21"]
[WhiteClock "0:00:10"]
[BlackClock "0:00:07"]

1. d4 {[%clk 0:03:00]}  g6 {[%clk 0:02:59]} 2. Nf3 {[%clk 0:03:01]}  Bg7 {[%clk 0:02:59]} 3. Nc3 {[%clk 0:03:01]}  d5 {[%clk 0:02:58]} 4. Bg5 {[%clk 0:03:00]}  a6 {[%clk 0:02:58]} 5. a4 {[%clk 0:02:57]}  h6 {[%clk 0:02:57]} 6. Bh4 {[%clk 0:02:57]}  Nf6 {[%clk 0:02:56]} 7. Bxf6 {[%clk 0:02:55]}  Bxf6 {[%clk 0:02:55]} 8. e4 {[%clk 0:02:55]}  dxe4 {[%clk 0:02:54]} 9. Nxe4 {[%clk 0:02:56]}  Bg7 {[%clk 0:02:55]} 10. Bc4 {[%clk 0:02:55]}  e6 {[%clk 0:02:44]} 11. c3 {[%clk 0:02:53]}  Nd7 {[%clk 0:02:41]} 12. O-O {[%clk 0:02:53]}  Nb6 {[%clk 0:02:38]} 13. Bb3 {[%clk 0:02:53]}  O-O {[%clk 0:02:37]} 14. Re1 {[%clk 0:02:51]}  Nd5 {[%clk 0:02:35]} 15. a5 {[%clk 0:02:48]}  c6 {[%clk 0:02:25]} 16. Ne5 {[%clk 0:02:47]}  Qc7 {[%clk 0:02:18]} 17. Nd3 {[%clk 0:02:35]}  Nf4 {[%clk 0:02:12]} 18. g3 {[%clk 0:02:23]}  Nxd3 {[%clk 0:02:00]} 19. Qxd3 {[%clk 0:02:24]}  e5 {[%clk 0:01:57]} 20. d5 {[%clk 0:02:20]}  cxd5 {[%clk 0:01:57]} 21. Bxd5 {[%clk 0:02:19]}  Rd8 {[%clk 0:01:54]} 22. Red1 {[%clk 0:02:11]}  Be6 {[%clk 0:01:53]} 23. c4 {[%clk 0:02:11]}  Kh7 {[%clk 0:01:48]} 24. Nc3 {[%clk 0:02:08]}  f5 {[%clk 0:01:44]} 25. Qe3 {[%clk 0:01:51]}  Bxd5 {[%clk 0:01:38]} 26. cxd5 {[%clk 0:01:49]}  e4 {[%clk 0:01:31]} 27. Na4 {[%clk 0:01:41]}  Qe5 {[%clk 0:00:52]} 28. Nb6 {[%clk 0:01:38]}  Rab8 {[%clk 0:00:52]} 29. Rab1 {[%clk 0:01:35]}  g5 {[%clk 0:00:50]} 30. b4 {[%clk 0:01:26]}  f4 {[%clk 0:00:50]} 31. Qc5 {[%clk 0:01:17]}  e3 {[%clk 0:00:46]} 32. fxe3 {[%clk 0:01:04]}  fxg3 {[%clk 0:00:46]} 33. Qc2+ {[%clk 0:00:54]}  Kh8 {[%clk 0:00:45]} 34. e4 {[%clk 0:00:50]}  gxh2+ {[%clk 0:00:43]} 35. Kh1 {[%clk 0:00:50]}  g4 {[%clk 0:00:35]} 36. Re1 {[%clk 0:00:41]}  g3 {[%clk 0:00:35]} 37. Rb3 {[%clk 0:00:38]}  h5 {[%clk 0:00:34]} 38. Qe2 {[%clk 0:00:34]}  h4 {[%clk 0:00:33]} 39. Qg4 {[%clk 0:00:33]}  Bf6 {[%clk 0:00:18]} 40. Nd7 {[%clk 0:00:31]}  Rxd7 {[%clk 0:00:15]} 41. Qxd7 {[%clk 0:00:32]}  Bg7 {[%clk 0:00:12]} 42. Qg4 {[%clk 0:00:31]}  Bf6 {[%clk 0:00:08]} 43. Rf3 {[%clk 0:00:31]}  Rg8 {[%clk 0:00:08]} 44. Qxg8+ {[%clk 0:00:14]}  Kxg8 {[%clk 0:00:08]} 45. d6 {[%clk 0:00:12]}  Qxd6 {[%clk 0:00:07]} 46. Ref1 {[%clk 0:00:12]}  Be5 {[%clk 0:00:07]} 47. Rf5 {[%clk 0:00:11]}  Qd4 {[%clk 0:00:06]} 48. Rf8+ {[%clk 0:00:09]}  Kg7 {[%clk 0:00:06]} 49. R1f7+ {[%clk 0:00:09]}  Kg6 {[%clk 0:00:06]} 50. Kg2 {[%clk 0:00:09]}  Qxe4+ {[%clk 0:00:07]} 51. Kh3 {[%clk 0:00:10]}  h1=Q# {[%clk 0:00:07]} 0-1


[Site "https://www.chess.com"]

[Event "Titled Tuesday Blitz December 20 Late 2022"]
[White "Ansh M Shah"]
[Black "Gonzalez, Francisco Silva"]
[WhiteFideId "25033379"]
[BlackFideId "1512285"]
[WhiteElo "2084"]
[BlackElo "2220"]
[Result "1-0"]
[Round "07"]
[TimeControl "180+1"]
[Date "2022.12.21"]
[WhiteClock "0:00:08"]
[BlackClock "0:00:47"]

1. d4 {[%clk 0:02:54]}  Nf6 {[%clk 0:02:58]} 2. c4 {[%clk 0:02:55]}  e6 {[%clk 0:02:58]} 3. g3 {[%clk 0:02:55]}  d5 {[%clk 0:02:57]} 4. Bg2 {[%clk 0:02:55]}  dxc4 {[%clk 0:02:56]} 5. Nf3 {[%clk 0:02:54]}  Nc6 {[%clk 0:02:55]} 6. O-O {[%clk 0:02:54]}  Rb8 {[%clk 0:02:55]} 7. a4 {[%clk 0:02:53]}  b6 {[%clk 0:02:54]} 8. Qc2 {[%clk 0:02:50]}  Nb4 {[%clk 0:02:52]} 9. Qxc4 {[%clk 0:02:49]}  Ba6 {[%clk 0:02:52]} 10. Qb3 {[%clk 0:02:44]}  Bxe2 {[%clk 0:02:51]} 11. Re1 {[%clk 0:02:44]}  Bxf3 {[%clk 0:02:49]} 12. Bxf3 {[%clk 0:02:37]}  a5 {[%clk 0:02:49]} 13. Na3 {[%clk 0:02:26]}  Be7 {[%clk 0:02:49]} 14. Nb5 {[%clk 0:02:20]}  O-O {[%clk 0:02:47]} 15. Bf4 {[%clk 0:02:13]}  Nbd5 {[%clk 0:02:47]} 16. Be5 {[%clk 0:02:10]}  Bb4 {[%clk 0:02:46]} 17. Rec1 {[%clk 0:02:10]}  Rc8 {[%clk 0:02:37]} 18. Na7 {[%clk 0:02:06]}  Ra8 {[%clk 0:02:33]} 19. Nc6 {[%clk 0:01:53]}  Qd7 {[%clk 0:02:32]} 20. Nxb4 {[%clk 0:01:46]}  axb4 {[%clk 0:02:23]} 21. Bxf6 {[%clk 0:01:47]}  gxf6 {[%clk 0:02:18]} 22. Be4 {[%clk 0:01:46]}  Ra5 {[%clk 0:02:12]} 23. Bxd5 {[%clk 0:01:41]}  Rxd5 {[%clk 0:02:07]} 24. Qxb4 {[%clk 0:01:28]}  Rxd4 {[%clk 0:02:07]} 25. Rxc7 {[%clk 0:01:12]}  Rxb4 {[%clk 0:02:04]} 26. Rxd7 {[%clk 0:01:13]}  Rxb2 {[%clk 0:02:04]} 27. Rb7 {[%clk 0:01:14]}  Rb4 {[%clk 0:02:00]} 28. Kg2 {[%clk 0:01:08]}  Ra8 {[%clk 0:02:00]} 29. Rc1 {[%clk 0:00:58]}  Rbxa4 {[%clk 0:01:58]} 30. Rcc7 {[%clk 0:00:57]}  Rf8 {[%clk 0:01:58]} 31. Rxb6 {[%clk 0:00:58]}  Ra2 {[%clk 0:01:58]} 32. h4 {[%clk 0:00:56]}  f5 {[%clk 0:01:57]} 33. Rbb7 {[%clk 0:00:50]}  Kg7 {[%clk 0:01:54]} 34. Kf3 {[%clk 0:00:50]}  Kf6 {[%clk 0:01:54]} 35. Kg2 {[%clk 0:00:48]}  h5 {[%clk 0:01:53]} 36. Kf3 {[%clk 0:00:48]}  Ra4 {[%clk 0:01:50]} 37. Kg2 {[%clk 0:00:48]}  f4 {[%clk 0:01:51]} 38. Kf3 {[%clk 0:00:46]}  fxg3 {[%clk 0:01:50]} 39. fxg3 {[%clk 0:00:46]}  Ra3+ {[%clk 0:01:48]} 40. Kf2 {[%clk 0:00:46]}  e5 {[%clk 0:01:37]} 41. Rc6+ {[%clk 0:00:39]}  Kf5 {[%clk 0:01:36]} 42. Rh6 {[%clk 0:00:39]}  Ke4 {[%clk 0:01:17]} 43. Rb4+ {[%clk 0:00:36]}  Kd5 {[%clk 0:01:17]} 44. Rxh5 {[%clk 0:00:34]}  f6 {[%clk 0:01:16]} 45. Rb2 {[%clk 0:00:30]}  Rc8 {[%clk 0:01:15]} 46. Rd2+ {[%clk 0:00:30]}  Ke6 {[%clk 0:01:15]} 47. Rh6 {[%clk 0:00:28]}  Rcc3 {[%clk 0:01:14]} 48. Rg6 {[%clk 0:00:28]}  Rf3+ {[%clk 0:01:14]} 49. Kg2 {[%clk 0:00:28]}  Kf5 {[%clk 0:01:14]} 50. h5 {[%clk 0:00:28]}  Rad3 {[%clk 0:01:06]} 51. Rxd3 {[%clk 0:00:22]}  Rxd3 {[%clk 0:01:05]} 52. g4+ {[%clk 0:00:23]}  Kf4 {[%clk 0:01:04]} 53. h6 {[%clk 0:00:22]}  Rd8 {[%clk 0:00:59]} 54. Kh3 {[%clk 0:00:20]}  f5 {[%clk 0:00:57]} 55. Rf6 {[%clk 0:00:15]}  e4 {[%clk 0:00:57]} 56. Rxf5+ {[%clk 0:00:15]}  Ke3 {[%clk 0:00:58]} 57. g5 {[%clk 0:00:15]}  Rd1 {[%clk 0:00:56]} 58. Kg4 {[%clk 0:00:15]}  Rg1+ {[%clk 0:00:57]} 59. Kh5 {[%clk 0:00:15]}  Kd2 {[%clk 0:00:56]} 60. Rd5+ {[%clk 0:00:12]}  Kc2 {[%clk 0:00:54]} 61. Re5 {[%clk 0:00:11]}  Kd3 {[%clk 0:00:53]} 62. Kg6 {[%clk 0:00:10]}  Kd4 {[%clk 0:00:51]} 63. Re8 {[%clk 0:00:09]}  e3 {[%clk 0:00:47]} 64. h7 {[%clk 0:00:10]}  e2 {[%clk 0:00:47]} 65. Rxe2 {[%clk 0:00:08]}  Rh1 {[%clk 0:00:48]} 66. Re8 {[%clk 0:00:08]}  Rxh7 {[%clk 0:00:47]} 67. Kxh7 {[%clk 0:00:08]} 1-0


[Site "https://www.chess.com"]

[Event "Titled Tuesday Blitz December 20 Late 2022"]
[White "Araujo, Everson De Moura"]
[Black "Radovanovic, Dusan"]
[WhiteFideId "22737197"]
[BlackFideId "926868"]
[WhiteElo "2035"]
[BlackElo "2337"]
[Result "0-1"]
[Round "07"]
[TimeControl "180+1"]
[Date "2022.12.21"]
[WhiteClock "0:00:01"]
[BlackClock "0:00:39"]

1. c4 {[%clk 0:02:50]}  e5 {[%clk 0:02:58]} 2. Nc3 {[%clk 0:02:50]}  Nc6 {[%clk 0:02:59]} 3. Nf3 {[%clk 0:02:50]}  Nf6 {[%clk 0:02:58]} 4. e4 {[%clk 0:02:50]}  Bb4 {[%clk 0:02:55]} 5. d3 {[%clk 0:02:49]}  a6 {[%clk 0:02:51]} 6. a3 {[%clk 0:02:49]}  Bc5 {[%clk 0:02:50]} 7. b4 {[%clk 0:02:46]}  Ba7 {[%clk 0:02:49]} 8. Be2 {[%clk 0:02:42]}  d6 {[%clk 0:02:49]} 9. O-O {[%clk 0:02:42]}  Bg4 {[%clk 0:02:46]} 10. h3 {[%clk 0:02:42]}  Bxf3 {[%clk 0:02:44]} 11. Bxf3 {[%clk 0:02:43]}  h6 {[%clk 0:02:42]} 12. Be3 {[%clk 0:02:41]}  Nd4 {[%clk 0:02:42]} 13. Rc1 {[%clk 0:02:34]}  O-O {[%clk 0:02:41]} 14. Nd5 {[%clk 0:02:31]}  c6 {[%clk 0:02:30]} 15. Nc3 {[%clk 0:02:19]}  Qe7 {[%clk 0:02:25]} 16. g3 {[%clk 0:02:17]}  b5 {[%clk 0:02:23]} 17. Bg2 {[%clk 0:02:10]}  Nd7 {[%clk 0:02:20]} 18. Ne2 {[%clk 0:02:07]}  Nxe2+ {[%clk 0:01:50]} 19. Qxe2 {[%clk 0:02:08]}  Bxe3 {[%clk 0:01:46]} 20. Qxe3 {[%clk 0:01:57]}  c5 {[%clk 0:01:47]} 21. bxc5 {[%clk 0:01:40]}  Nxc5 {[%clk 0:01:45]} 22. d4 {[%clk 0:01:39]}  Ne6 {[%clk 0:01:37]} 23. dxe5 {[%clk 0:01:33]}  dxe5 {[%clk 0:01:38]} 24. cxb5 {[%clk 0:01:31]}  axb5 {[%clk 0:01:37]} 25. Rb1 {[%clk 0:01:29]}  Nd4 {[%clk 0:01:37]} 26. f4 {[%clk 0:01:11]}  Rxa3 {[%clk 0:01:35]} 27. Qf2 {[%clk 0:01:10]}  Rxg3 {[%clk 0:01:28]} 28. f5 {[%clk 0:01:00]}  Qh4 {[%clk 0:01:22]} 29. Kh2 {[%clk 0:00:53]}  Nf3+ {[%clk 0:01:14]} 30. Qxf3 {[%clk 0:00:32]}  Rxf3 {[%clk 0:01:13]} 31. Rxf3 {[%clk 0:00:33]}  Qxe4 {[%clk 0:01:03]} 32. Rxb5 {[%clk 0:00:32]}  Qe2 {[%clk 0:01:02]} 33. Rb1 {[%clk 0:00:21]}  Rd8 {[%clk 0:00:59]} 34. f6 {[%clk 0:00:20]}  Rd3 {[%clk 0:00:46]} 35. Rb8+ {[%clk 0:00:13]}  Kh7 {[%clk 0:00:45]} 36. fxg7 {[%clk 0:00:14]}  Kxg7 {[%clk 0:00:43]} 37. Rxd3 {[%clk 0:00:02]}  Qxd3 {[%clk 0:00:43]} 38. Re8 {[%clk 0:00:02]}  Qd4 {[%clk 0:00:40]} 39. Ra8 {[%clk 0:00:01]}  Qf4+ {[%clk 0:00:39]} 0-1


[Site "https://www.chess.com"]

[Event "Titled Tuesday Blitz December 20 Late 2022"]
[White "Arbunic Castro, Giovanna"]
[Black "Martins Jr Sobrinho, Manuel De"]
[WhiteFideId "3400549"]
[BlackFideId "2170310"]
[WhiteElo "1958"]
[BlackElo "1924"]
[Result "0-1"]
[Round "07"]
[TimeControl "180+1"]
[Date "2022.12.21"]
[WhiteClock "0:00:05"]
[BlackClock "0:01:05"]

1. e4 {[%clk 0:02:58]}  c5 {[%clk 0:02:59]} 2. g3 {[%clk 0:02:56]}  Nc6 {[%clk 0:03:00]} 3. Bg2 {[%clk 0:02:56]}  Nf6 {[%clk 0:03:00]} 4. Ne2 {[%clk 0:02:56]}  g6 {[%clk 0:02:59]} 5. c3 {[%clk 0:02:55]}  d5 {[%clk 0:02:59]} 6. exd5 {[%clk 0:02:54]}  Nxd5 {[%clk 0:02:59]} 7. d4 {[%clk 0:02:54]}  cxd4 {[%clk 0:02:59]} 8. cxd4 {[%clk 0:02:53]}  Bg7 {[%clk 0:02:59]} 9. O-O {[%clk 0:02:52]}  O-O {[%clk 0:02:58]} 10. Nbc3 {[%clk 0:02:53]}  Nxc3 {[%clk 0:02:53]} 11. bxc3 {[%clk 0:02:51]}  Na5 {[%clk 0:02:45]} 12. Rb1 {[%clk 0:02:06]}  e5 {[%clk 0:02:42]} 13. Qa4 {[%clk 0:01:37]}  Bd7 {[%clk 0:02:29]} 14. Qb4 {[%clk 0:01:32]}  exd4 {[%clk 0:02:13]} 15. cxd4 {[%clk 0:01:24]}  Bc6 {[%clk 0:02:07]} 16. d5 {[%clk 0:01:15]}  Bd7 {[%clk 0:02:05]} 17. Bd2 {[%clk 0:01:08]}  b6 {[%clk 0:02:04]} 18. d6 {[%clk 0:01:06]}  Bc6 {[%clk 0:02:01]} 19. Bxc6 {[%clk 0:00:52]}  Nxc6 {[%clk 0:02:00]} 20. Qb5 {[%clk 0:00:45]}  Qxd6 {[%clk 0:01:53]} 21. Bf4 {[%clk 0:00:44]}  Qc5 {[%clk 0:01:53]} 22. Qxc5 {[%clk 0:00:40]}  bxc5 {[%clk 0:01:54]} 23. Rfc1 {[%clk 0:00:39]}  Nd4 {[%clk 0:01:53]} 24. Nc3 {[%clk 0:00:30]}  g5 {[%clk 0:01:43]} 25. Be3 {[%clk 0:00:25]}  f5 {[%clk 0:01:40]} 26. Kf1 {[%clk 0:00:23]}  f4 {[%clk 0:01:40]} 27. Bxd4 {[%clk 0:00:17]}  cxd4 {[%clk 0:01:39]} 28. Ne4 {[%clk 0:00:16]}  fxg3 {[%clk 0:01:31]} 29. hxg3 {[%clk 0:00:16]}  Rae8 {[%clk 0:01:30]} 30. Nxg5 {[%clk 0:00:14]}  Bh6 {[%clk 0:01:29]} 31. f4 {[%clk 0:00:14]}  Bxg5 {[%clk 0:01:29]} 32. Rc7 {[%clk 0:00:12]}  Re7 {[%clk 0:01:21]} 33. Rbb7 {[%clk 0:00:11]}  Rxc7 {[%clk 0:01:20]} 34. Rxc7 {[%clk 0:00:10]}  Bf6 {[%clk 0:01:08]} 35. Rxa7 {[%clk 0:00:08]}  d3 {[%clk 0:01:07]} 36. Ke1 {[%clk 0:00:08]}  Bc3+ {[%clk 0:01:06]} 37. Kd1 {[%clk 0:00:07]}  Re8 {[%clk 0:01:06]} 38. Rd7 {[%clk 0:00:05]}  Re1# {[%clk 0:01:05]} 0-1


[Site "https://www.chess.com"]